Workbook

Sheet Instructions

Sheet Meta data_sheet
A1: Ambient Monitoring Station | B1: Details | D1: Ambient Monitoring Results | E1: Details
A2: Location | B2: Werris Creek | D2: PM2.5 monitoring start (dd/mm/yyyy hh:mm) | E2: 2023-01-01
A3: Easting | B3: =VLOOKUP($B$2,'Meta data_lookup'!$A$2:$D$5,2,FALSE) -> 276783 | D3: PM2.5 monitoring end | E3: 2023-01-23
A4: Northing | B4: =VLOOKUP($B$2,'Meta data_lookup'!$A$2:$D$5,3,FALSE) -> 6528734 | D4: PM2.5 monitoring period (h) | E4: =(E3-E2)*24 -> 528
A5: Site elevation (m) | B5: =VLOOKUP($B$2,'Meta data_lookup'!$A$2:$D$5,4,FALSE) -> ND | D5: Number of valid PM2.5 results | E5: =COUNTIF('Raw data_sheet'!G2:G745,"Valid") -> 528
A6: Description of surrounding land use | B6: Agriculture/Mining | D6: Proportion of valid PM2.5 results (%) | E6: =E5/E4 -> 1
A7: Typical sources impacting on the site | B7: Agriculture | D7: PM10 monitoring start (dd/mm/yyyy hh:mm) | E7: 2023-01-01
A8: Site compliance with AS/NZS 3580.1.1:2007 | B8: Yes | D8: PM10 monitoring end | E8: 2023-01-23
A9: PM2.5 method compliance with AS/NZS 3580.9.13:2013 | B9: Yes | D9: PM10 monitoring period (h) | E9: =(E8-E7)*24 -> 528
A10: PM2.5 instrument make | B10: Thermo Scientific | D10: Number of valid PM10 results | E10: =COUNTIF('Raw data_sheet'!J2:J745,"Valid") -> 528
A11: PM2.5 instrument model | B11: 1405DF | D11: Proportion of valid PM10 results (%) | E11: =E10/E9 -> 1
A12: PM2.5 instrument intake height (m) | B12: 3.5
A13: PM10 method compliance with AS 3580.9.8-2008 | B13: No*
A14: PM10 instrument make | B14: Thermo Scientific
A15: PM10 instrument model | B15: 1405DF
A16: PM10 instrument intake height (m) | B16: 3.5
A17: *The 1405DF TEOM used at this site measures PM10 indirectly rather than directly. The unit does however meet the intent of AS 3580.9.8-2008, and this method has been accredited by the USEPA. It is considered scientifically robust and is used extensively throughout NSW with EPA's knowledge and informal acceptance.

Sheet Meta data_lookup
A1: Location | B1: Easting | C1: Northing | D1: Site elevation (m)
A2: Maules Creek | B2: 225302 | C2: 6623037 | D2: ND
A3: Breeza | B3: 237993 | C3: 6542606 | D3: ND
A4: Will-gai | B4: 231804 | C4: 6596392 | D4: ND
A5: Werris Creek | B5: 276783 | C5: 6528734 | D5: ND

Sheet Raw data_sheet
A1: Year | B1: Month | C1: Day | D1: Hour | E1: Date and time | F1: PM2.5_hourly | G1: PM2.5_Data_Status | H1: PM2.5_24hr_rolling_average | I1: PM10_hourly | J1: PM10_Data_Status | K1: PM10_24hr_rolling_average | L1: Cause of data invalidity, if applicable | M1: Detailed comments | N1: PM2.5_hourly_valid_plot | O1: PM2.5_24hr_rolling_ave_valid_plot | P1: PM10_hourly_valid_plot | Q1: PM10_24hr_rolling_ave_valid_plot | R1: PM10_hourly_valid_plot_series | S1: PM10_24hr_rolling_average_valid_plot_series | T1: PM2.5_hourly_valid_plot_series | U1: PM2.5_24hr_rolling_average_valid_plot_series
A2: 2023 | B2: 1 | C2: 1 | D2: 0 | E2: =DATE(A2,B2,C2)+TIME(D2,0,0) -> 44927 | F2: 3.7 | G2: Valid | H2: 4.3 | I2: 6.7 | J2: Valid | K2: 8.5 | N2: =IF(G2="Valid", F2, NA()) -> 3.7 | O2: =IF(G2="Valid", H2, NA()) -> 4.3 | P2: =IF(J2="Valid", I2, NA()) -> 6.7 | Q2: =IF(J2="Valid", K2, NA()) -> 8.5 | R2: 6.7 | S2: 8.5 | T2: 3.7 | U2: 4.3
A3: =A2 -> 2023 | B3: =B2 -> 1 | C3: =C2 -> 1 | D3: =IF(D2=23,0,D2+1) -> 1 | E3: =E2+0.0416666666666666 -> 44927.04167 | F3: 4.1 | G3: Valid | H3: 4.3 | I3: 7.3 | J3: Valid | K3: 8.5 | N3: 4.1 | O3: 4.3 | P3: 7.3 | Q3: 8.5 | R3: 7.3 | S3: 8.5 | T3: 4.1 | U3: 4.3
A4: =A3 -> 2023 | B4: =B3 -> 1 | C4: 1 | D4: =IF(D3=23,0,D3+1) -> 2 | E4: =E3+0.0416666666666666 -> 44927.08333 | F4: 2.9 | G4: Valid | H4: 4.2 | I4: 5.9 | J4: Valid | K4: 8.3 | N4: 2.9 | O4: 4.2 | P4: 5.9 | Q4: 8.3 | R4: 5.9 | S4: 8.3 | T4: 2.9 | U4: 4.2
A5: 2023 | B5: 1 | C5: 1 | D5: 3 | E5: 44927.125 | F5: 3.7 | G5: Valid | H5: 4.2 | I5: 6.5 | J5: Valid | K5: 8.2 | N5: 3.7 | O5: 4.2 | P5: 6.5 | Q5: 8.2 | R5: 6.5 | S5: 8.2 | T5: 3.7 | U5: 4.2
A6: 2023 | B6: 1 | C6: 1 | D6: 4 | E6: 44927.16667 | F6: 4.1 | G6: Valid | H6: 4.1 | I6: 7.5 | J6: Valid | K6: 8 | N6: 4.1 | O6: 4.1 | P6: 7.5 | Q6: 8 | R6: 7.5 | S6: 8 | T6: 4.1 | U6: 4.1
A7: 2023 | B7: 1 | C7: 1 | D7: 5 | E7: 44927.20833 | F7: 5.1 | G7: Valid | H7: 4 | I7: 8.8 | J7: Valid | K7: 8 | N7: 5.1 | O7: 4 | P7: 8.8 | Q7: 8 | R7: 8.8 | S7: 8 | T7: 5.1 | U7: 4
A8: 2023 | B8: 1 | C8: 1 | D8: 6 | E8: 44927.25 | F8: 6.4 | G8: Valid | H8: 4.2 | I8: 10.5 | J8: Valid | K8: 8.1 | N8: 6.4 | O8: 4.2 | P8: 10.5 | Q8: 8.1 | R8: 10.5 | S8: 8.1 | T8: 6.4 | U8: 4.2
A9: 2023 | B9: 1 | C9: 1 | D9: 7 | E9: 44927.29167 | F9: 0.1 | G9: Valid | H9: 4 | I9: 4.4 | J9: Valid | K9: 8 | N9: 0.1 | O9: 4 | P9: 4.4 | Q9: 8 | R9: 4.4 | S9: 8 | T9: 0.1 | U9: 4
A10: 2023 | B10: 1 | C10: 1 | D10: 8 | E10: 44927.33333 | F10: 7.5 | G10: Valid | H10: 4.3 | I10: 11 | J10: Valid | K10: 8.3 | N10: 7.5 | O10: 4.3 | P10: 11 | Q10: 8.3 | R10: 11 | S10: 8.3 | T10: 7.5 | U10: 4.3
A11: 2023 | B11: 1 | C11: 1 | D11: 9 | E11: 44927.375 | F11: -2.6 | G11: Valid | H11: 4.3 | I11: 0.3 | J11: Valid | K11: 8.4 | N11: -2.6 | O11: 4.3 | P11: 0.3 | Q11: 8.4 | R11: 0.3 | S11: 8.4 | T11: -2.6 | U11: 4.3
A12: 2023 | B12: 1 | C12: 1 | D12: 10 | E12: 44927.41667 | F12: 3 | G12: Valid | H12: 4.4 | I12: 5.5 | J12: Valid | K12: 8.6 | N12: 3 | O12: 4.4 | P12: 5.5 | Q12: 8.6 | R12: 5.5 | S12: 8.6 | T12: 3 | U12: 4.4
A13: 2023 | B13: 1 | C13: 1 | D13: 11 | E13: 44927.45833 | F13: 4.6 | G13: Valid | H13: 4.6 | I13: 7.7 | J13: Valid | K13: 8.7 | N13: 4.6 | O13: 4.6 | P13: 7.7 | Q13: 8.7 | R13: 7.7 | S13: 8.7 | T13: 4.6 | U13: 4.6
A14: 2023 | B14: 1 | C14: 1 | D14: 12 | E14: 44927.5 | F14: 6.7 | G14: Valid | H14: 4.9 | I14: 9.9 | J14: Valid | K14: 9 | N14: 6.7 | O14: 4.9 | P14: 9.9 | Q14: 9 | R14: 9.9 | S14: 9 | T14: 6.7 | U14: 4.9
A15: 2023 | B15: 1 | C15: 1 | D15: 13 | E15: 44927.54167 | F15: 6.1 | G15: Valid | H15: 4.8 | I15: 10.6 | J15: Valid | K15: 8.9 | N15: 6.1 | O15: 4.8 | P15: 10.6 | Q15: 8.9 | R15: 10.6 | S15: 8.9 | T15: 6.1 | U15: 4.8
A16: 2023 | B16: 1 | C16: 1 | D16: 14 | E16: 44927.58333 | F16: 8.2 | G16: Valid | H16: 4.8 | I16: 12 | J16: Valid | K16: 8.7 | N16: 8.2 | O16: 4.8 | P16: 12 | Q16: 8.7 | R16: 12 | S16: 8.7 | T16: 8.2 | U16: 4.8
A17: 2023 | B17: 1 | C17: 1 | D17: 15 | E17: 44927.625 | F17: 8 | G17: Valid | H17: 4.9 | I17: 12.3 | J17: Valid | K17: 8.8 | N17: 8 | O17: 4.9 | P17: 12.3 | Q17: 8.8 | R17: 12.3 | S17: 8.8 | T17: 8 | U17: 4.9
A18: 2023 | B18: 1 | C18: 1 | D18: 16 | E18: 44927.66667 | F18: 6.3 | G18: Valid | H18: 5 | I18: 9.6 | J18: Valid | K18: 8.9 | N18: 6.3 | O18: 5 | P18: 9.6 | Q18: 8.9 | R18: 9.6 | S18: 8.9 | T18: 6.3 | U18: 5
A19: 2023 | B19: 1 | C19: 1 | D19: 17 | E19: 44927.70833 | F19: 7.7 | G19: Valid | H19: 5 | I19: 10.4 | J19: Valid | K19: 8.9 | N19: 7.7 | O19: 5 | P19: 10.4 | Q19: 8.9 | R19: 10.4 | S19: 8.9 | T19: 7.7 | U19: 5
A20: 2023 | B20: 1 | C20: 1 | D20: 18 | E20: 44927.75 | F20: 3.7 | G20: Valid | H20: 4.9 | I20: 6.5 | J20: Valid | K20: 8.7 | N20: 3.7 | O20: 4.9 | P20: 6.5 | Q20: 8.7 | R20: 6.5 | S20: 8.7 | T20: 3.7 | U20: 4.9
A21: 2023 | B21: 1 | C21: 1 | D21: 19 | E21: 44927.79167 | F21: 5.2 | G21: Valid | H21: 4.9 | I21: 9 | J21: Valid | K21: 8.7 | N21: 5.2 | O21: 4.9 | P21: 9 | Q21: 8.7 | R21: 9 | S21: 8.7 | T21: 5.2 | U21: 4.9
A22: 2023 | B22: 1 | C22: 1 | D22: 20 | E22: 44927.83333 | F22: 3.7 | G22: Valid | H22: 4.8 | I22: 6.6 | J22: Valid | K22: 8.5 | N22: 3.7 | O22: 4.8 | P22: 6.6 | Q22: 8.5 | R22: 6.6 | S22: 8.5 | T22: 3.7 | U22: 4.8
A23: 2023 | B23: 1 | C23: 1 | D23: 21 | E23: 44927.875 | F23: 5 | G23: Valid | H23: 4.7 | I23: 7.5 | J23: Valid | K23: 8.2 | N23: 5 | O23: 4.7 | P23: 7.5 | Q23: 8.2 | R23: 7.5 | S23: 8.2 | T23: 5 | U23: 4.7
A24: 2023 | B24: 1 | C24: 1 | D24: 22 | E24: 44927.91667 | F24: 5.9 | G24: Valid | H24: 4.7 | I24: 23 | J24: Valid | K24: 8.7 | N24: 5.9 | O24: 4.7 | P24: 23 | Q24: 8.7 | R24: 23 | S24: 8.7 | T24: 5.9 | U24: 4.7
A25: 2023 | B25: =B24 -> 1 | C25: =C24 -> 1 | D25: 23 | E25: 44927.95833 | F25: 2.3 | G25: Valid | H25: 4.6 | I25: 4.6 | J25: Valid | K25: 8.4 | N25: 2.3 | O25: 4.6 | P25: 4.6 | Q25: 8.4 | R25: 4.6 | S25: 8.4 | T25: 2.3 | U25: 4.6
A26: 2023 | B26: =B25 -> 1 | C26: =C2+1 -> 2 | D26: 0 | E26: 44928 | F26: 0.4 | G26: Valid | H26: 4.4 | I26: 3.8 | J26: Valid | K26: 8.3 | N26: 0.4 | O26: 4.4 | P26: 3.8 | Q26: 8.3 | R26: 3.8 | S26: 8.3 | T26: 0.4 | U26: 4.4
A27: 2023 | B27: =B26 -> 1 | C27: =C3+1 -> 2 | D27: 1 | E27: 44928.04167 | F27: 4.6 | G27: Valid | H27: 4.4 | I27: 6.2 | J27: Valid | K27: 8.2 | N27: 4.6 | O27: 4.4 | P27: 6.2 | Q27: 8.2 | R27: 6.2 | S27: 8.2 | T27: 4.6 | U27: 4.4
A28: 2023 | B28: 1 | C28: 2 | D28: 2 | E28: 44928.08333 | F28: 2.9 | G28: Valid | H28: 4.5 | I28: 5.4 | J28: Valid | K28: 8.2 | N28: 2.9 | O28: 4.5 | P28: 5.4 | Q28: 8.2 | R28: 5.4 | S28: 8.2 | T28: 2.9 | U28: 4.5
A29: 2023 | B29: 1 | C29: 2 | D29: 3 | E29: 44928.125 | F29: 1.9 | G29: Valid | H29: 4.4 | I29: 5 | J29: Valid | K29: 8.1 | N29: 1.9 | O29: 4.4 | P29: 5 | Q29: 8.1 | R29: 5 | S29: 8.1 | T29: 1.9 | U29: 4.4
A30: 2023 | B30: 1 | C30: 2 | D30: 4 | E30: 44928.16667 | F30: 2.6 | G30: Valid | H30: 4.3 | I30: 5.1 | J30: Valid | K30: 8 | N30: 2.6 | O30: 4.3 | P30: 5.1 | Q30: 8 | R30: 5.1 | S30: 8 | T30: 2.6 | U30: 4.3
A31: 2023 | B31: 1 | C31: 2 | D31: 5 | E31: 44928.20833 | F31: 0.4 | G31: Valid | H31: 4.1 | I31: 3.4 | J31: Valid | K31: 7.7 | N31: 0.4 | O31: 4.1 | P31: 3.4 | Q31: 7.7 | R31: 3.4 | S31: 7.7 | T31: 0.4 | U31: 4.1
A32: 2023 | B32: 1 | C32: 2 | D32: 6 | E32: 44928.25 | F32: 4.1 | G32: Valid | H32: 4 | I32: 6.1 | J32: Valid | K32: 7.5 | N32: 4.1 | O32: 4 | P32: 6.1 | Q32: 7.5 | R32: 6.1 | S32: 7.5 | T32: 4.1 | U32: 4
A33: 2023 | B33: 1 | C33: 2 | D33: 7 | E33: 44928.29167 | F33: 3.7 | G33: Valid | H33: 4.2 | I33: 6.8 | J33: Valid | K33: 7.7 | N33: 3.7 | O33: 4.2 | P33: 6.8 | Q33: 7.7 | R33: 6.8 | S33: 7.7 | T33: 3.7 | U33: 4.2
A34: 2023 | B34: 1 | C34: 2 | D34: 8 | E34: 44928.33333 | F34: 1.7 | G34: Valid | H34: 4 | I34: 4.6 | J34: Valid | K34: 7.5 | N34: 1.7 | O34: 4 | P34: 4.6 | Q34: 7.5 | R34: 4.6 | S34: 7.5 | T34: 1.7 | U34: 4
A35: 2023 | B35: 1 | C35: 2 | D35: 9 | E35: 44928.375 | F35: 0.8 | G35: Valid | H35: 4.1 | I35: 3.9 | J35: Valid | K35: 7.7 | N35: 0.8 | O35: 4.1 | P35: 3.9 | Q35: 7.7 | R35: 3.9 | S35: 7.7 | T35: 0.8 | U35: 4.1
A36: 2023 | B36: 1 | C36: 2 | D36: 10 | E36: 44928.41667 | F36: 2.7 | G36: Valid | H36: 4.1 | I36: 5.1 | J36: Valid | K36: 7.7 | N36: 2.7 | O36: 4.1 | P36: 5.1 | Q36: 7.7 | R36: 5.1 | S36: 7.7 | T36: 2.7 | U36: 4.1
A37: 2023 | B37: 1 | C37: 2 | D37: 11 | E37: 44928.45833 | F37: 1.4 | G37: Valid | H37: 4 | I37: 4.8 | J37: Valid | K37: 7.6 | N37: 1.4 | O37: 4 | P37: 4.8 | Q37: 7.6 | R37: 4.8 | S37: 7.6 | T37: 1.4 | U37: 4
A38: 2023 | B38: 1 | C38: 2 | D38: 12 | E38: 44928.5 | F38: 1.8 | G38: Valid | H38: 3.8 | I38: 5.4 | J38: Valid | K38: 7.5 | N38: 1.8 | O38: 3.8 | P38: 5.4 | Q38: 7.5 | R38: 5.4 | S38: 7.5 | T38: 1.8 | U38: 3.8
A39: 2023 | B39: 1 | C39: 2 | D39: 13 | E39: 44928.54167 | F39: 2.9 | G39: Valid | H39: 3.7 | I39: 6.2 | J39: Valid | K39: 7.3 | N39: 2.9 | O39: 3.7 | P39: 6.2 | Q39: 7.3 | R39: 6.2 | S39: 7.3 | T39: 2.9 | U39: 3.7
A40: 2023 | B40: 1 | C40: 2 | D40: 14 | E40: 44928.58333 | F40: 6.2 | G40: Valid | H40: 3.7 | I40: 14 | J40: Valid | K40: 7.4 | N40: 6.2 | O40: 3.7 | P40: 14 | Q40: 7.4 | R40: 14 | S40: 7.4 | T40: 6.2 | U40: 3.7
A41: 2023 | B41: 1 | C41: 2 | D41: 15 | E41: 44928.625 | F41: 3.8 | G41: Valid | H41: 3.5 | I41: 8.3 | J41: Valid | K41: 7.3 | N41: 3.8 | O41: 3.5 | P41: 8.3 | Q41: 7.3 | R41: 8.3 | S41: 7.3 | T41: 3.8 | U41: 3.5
A42: 2023 | B42: 1 | C42: 2 | D42: 16 | E42: 44928.66667 | F42: 6.7 | G42: Valid | H42: 3.5 | I42: 9.1 | J42: Valid | K42: 7.3 | N42: 6.7 | O42: 3.5 | P42: 9.1 | Q42: 7.3 | R42: 9.1 | S42: 7.3 | T42: 6.7 | U42: 3.5
A43: 2023 | B43: 1 | C43: 2 | D43: 17 | E43: 44928.70833 | F43: 5.4 | G43: Valid | H43: 3.4 | I43: 8.4 | J43: Valid | K43: 7.2 | N43: 5.4 | O43: 3.4 | P43: 8.4 | Q43: 7.2 | R43: 8.4 | S43: 7.2 | T43: 5.4 | U43: 3.4
A44: 2023 | B44: 1 | C44: 2 | D44: 18 | E44: 44928.75 | F44: 9 | G44: Valid | H44: 3.6 | I44: 12 | J44: Valid | K44: 7.4 | N44: 9 | O44: 3.6 | P44: 12 | Q44: 7.4 | R44: 12 | S44: 7.4 | T44: 9 | U44: 3.6
A45: 2023 | B45: 1 | C45: 2 | D45: 19 | E45: 44928.79167 | F45: 8.3 | G45: Valid | H45: 3.8 | I45: 11.6 | J45: Valid | K45: 7.5 | N45: 8.3 | O45: 3.8 | P45: 11.6 | Q45: 7.5 | R45: 11.6 | S45: 7.5 | T45: 8.3 | U45: 3.8
A46: 2023 | B46: 1 | C46: 2 | D46: 20 | E46: 44928.83333 | F46: 12.8 | G46: Valid | H46: 4.1 | I46: 16 | J46: Valid | K46: 7.8 | N46: 12.8 | O46: 4.1 | P46: 16 | Q46: 7.8 | R46: 16 | S46: 7.8 | T46: 12.8 | U46: 4.1
A47: 2023 | B47: 1 | C47: 2 | D47: 21 | E47: 44928.875 | F47: 12.8 | G47: Valid | H47: 4.4 | I47: 17.4 | J47: Valid | K47: 8.2 | N47: =IF(G47="Valid", F47, NA()) -> 12.8 | O47: =IF(G47="Valid", H47, NA()) -> 4.4 | P47: 17.4 | Q47: 8.2 | R47: 17.4 | S47: 8.2 | T47: 12.8 | U47: 4.4
A48: 2023 | B48: 1 | C48: 2 | D48: 22 | E48: 44928.91667 | F48: 8.7 | G48: Valid | H48: 4.5 | I48: 13.5 | J48: Valid | K48: 7.7 | N48: 8.7 | O48: 4.5 | P48: 13.5 | Q48: 7.7 | R48: 13.5 | S48: 7.7 | T48: 8.7 | U48: 4.5
A49: 2023 | B49: 1 | C49: 2 | D49: 23 | E49: 44928.95833 | F49: 8.5 | G49: Valid | H49: 4.7 | I49: 15.7 | J49: Valid | K49: 8.2 | N49: 8.5 | O49: 4.7 | P49: 15.7 | Q49: 8.2 | R49: 15.7 | S49: 8.2 | T49: 8.5 | U49: 4.7
A50: 2023 | B50: 1 | C50: 3 | D50: 0 | E50: 44929 | F50: 9.7 | G50: Valid | H50: 5.1 | I50: 14.2 | J50: Valid | K50: 8.6 | N50: 9.7 | O50: 5.1 | P50: 14.2 | Q50: 8.6 | R50: 14.2 | S50: 8.6 | T50: 9.7 | U50: 5.1
A51: 2023 | B51: 1 | C51: 3 | D51: 1 | E51: 44929.04167 | F51: 7.3 | G51: Valid | H51: 5.2 | I51: 11.1 | J51: Valid | K51: 8.8 | N51: 7.3 | O51: 5.2 | P51: 11.1 | Q51: 8.8 | R51: 11.1 | S51: 8.8 | T51: 7.3 | U51: 5.2
A52: 2023 | B52: 1 | C52: 3 | D52: 2 | E52: 44929.08333 | F52: 4.6 | G52: Valid | H52: 5.3 | I52: 10 | J52: Valid | K52: 9 | N52: 4.6 | O52: 5.3 | P52: 10 | Q52: 9 | R52: 10 | S52: 9 | T52: 4.6 | U52: 5.3
A53: 2023 | B53: 1 | C53: 3 | D53: 3 | E53: 44929.125 | F53: 12.1 | G53: Valid | H53: 5.7 | I53: 17.2 | J53: Valid | K53: 9.5 | N53: 12.1 | O53: 5.7 | P53: 17.2 | Q53: 9.5 | R53: 17.2 | S53: 9.5 | T53: 12.1 | U53: 5.7
A54: 2023 | B54: 1 | C54: 3 | D54: 4 | E54: 44929.16667 | F54: 10.9 | G54: Valid | H54: 6 | I54: 17.1 | J54: Valid | K54: 10 | N54: 10.9 | O54: 6 | P54: 17.1 | Q54: 10 | R54: 17.1 | S54: 10 | T54: 10.9 | U54: 6
A55: 2023 | B55: 1 | C55: 3 | D55: 5 | E55: 44929.20833 | F55: 4.9 | G55: Valid | H55: 6.2 | I55: 11.4 | J55: Valid | K55: 10.3 | N55: 4.9 | O55: 6.2 | P55: 11.4 | Q55: 10.3 | R55: 11.4 | S55: 10.3 | T55: 4.9 | U55: 6.2
A56: 2023 | B56: 1 | C56: 3 | D56: 6 | E56: 44929.25 | F56: 7.6 | G56: Valid | H56: 6.3 | I56: 11.1 | J56: Valid | K56: 10.5 | N56: 7.6 | O56: 6.3 | P56: 11.1 | Q56: 10.5 | R56: 11.1 | S56: 10.5 | T56: 7.6 | U56: 6.3
A57: 2023 | B57: 1 | C57: 3 | D57: 7 | E57: 44929.29167 | F57: 4.7 | G57: Valid | H57: 6.4 | I57: 11.3 | J57: Valid | K57: 10.7 | N57: 4.7 | O57: 6.4 | P57: 11.3 | Q57: 10.7 | R57: 11.3 | S57: 10.7 | T57: 4.7 | U57: 6.4
A58: 2023 | B58: 1 | C58: 3 | D58: 8 | E58: 44929.33333 | F58: 9.7 | G58: Valid | H58: 6.8 | I58: 15.4 | J58: Valid | K58: 11.2 | N58: 9.7 | O58: 6.8 | P58: 15.4 | Q58: 11.2 | R58: 15.4 | S58: 11.2 | T58: 9.7 | U58: 6.8
A59: 2023 | B59: 1 | C59: 3 | D59: 9 | E59: 44929.375 | F59: 8.5 | G59: Valid | H59: 7.1 | I59: 14.6 | J59: Valid | K59: 11.7 | N59: 8.5 | O59: 7.1 | P59: 14.6 | Q59: 11.7 | R59: 14.6 | S59: 11.7 | T59: 8.5 | U59: 7.1
A60: 2023 | B60: 1 | C60: 3 | D60: 10 | E60: 44929.41667 | F60: 4.5 | G60: Valid | H60: 7.2 | I60: 11.9 | J60: Valid | K60: 12 | N60: 4.5 | O60: 7.2 | P60: 11.9 | Q60: 12 | R60: 11.9 | S60: 12 | T60: 4.5 | U60: 7.2
A61: 2023 | B61: 1 | C61: 3 | D61: 11 | E61: 44929.45833 | F61: -0.2 | G61: Valid | H61: 7.2 | I61: 9.7 | J61: Valid | K61: 12.3 | N61: -0.2 | O61: 7.2 | P61: 9.7 | Q61: 12.3 | R61: 9.7 | S61: 12.3 | T61: -0.2 | U61: 7.2
A62: 2023 | B62: 1 | C62: 3 | D62: 12 | E62: 44929.5 | F62: 8.2 | G62: Valid | H62: 7.5 | I62: 16.4 | J62: Valid | K62: 12.8 | N62: 8.2 | O62: 7.5 | P62: 16.4 | Q62: 12.8 | R62: 16.4 | S62: 12.8 | T62: 8.2 | U62: 7.5
A63: 2023 | B63: 1 | C63: 3 | D63: 13 | E63: 44929.54167 | F63: 9.8 | G63: Valid | H63: 7.8 | I63: 15.7 | J63: Valid | K63: 13.2 | N63: 9.8 | O63: 7.8 | P63: 15.7 | Q63: 13.2 | R63: 15.7 | S63: 13.2 | T63: 9.8 | U63: 7.8
A64: 2023 | B64: 1 | C64: 3 | D64: 14 | E64: 44929.58333 | F64: 8 | G64: Valid | H64: 7.9 | I64: 15 | J64: Valid | K64: 13.3 | N64: 8 | O64: 7.9 | P64: 15 | Q64: 13.3 | R64: 15 | S64: 13.3 | T64: 8 | U64: 7.9
A65: 2023 | B65: 1 | C65: 3 | D65: 15 | E65: 44929.625 | F65: 10.3 | G65: Valid | H65: 8.2 | I65: 16.7 | J65: Valid | K65: 13.8 | N65: 10.3 | O65: 8.2 | P65: 16.7 | Q65: 13.8 | R65: 16.7 | S65: 13.8 | T65: 10.3 | U65: 8.2
A66: 2023 | B66: 1 | C66: 3 | D66: 16 | E66: 44929.66667 | F66: 9.8 | G66: Valid | H66: 8.3 | I66: 16.6 | J66: Valid | K66: 14.1 | N66: 9.8 | O66: 8.3 | P66: =IF(J66="Valid", I66, NA()) -> 16.6 | Q66: =IF(J66="Valid", K66, NA()) -> 14.1 | R66: 16.6 | S66: 14.1 | T66: 9.8 | U66: 8.3
A67: 2023 | B67: 1 | C67: 3 | D67: 17 | E67: 44929.70833 | F67: 6.6 | G67: Valid | H67: 8.4 | I67: 12.5 | J67: Valid | K67: 14.3 | N67: 6.6 | O67: 8.4 | P67: 12.5 | Q67: 14.3 | R67: 12.5 | S67: 14.3 | T67: 6.6 | U67: 8.4
A68: =A67 -> 2023 | B68: 1 | C68: 3 | D68: =IF(D67=23,0,D67+1) -> 18 | E68: =E67+0.0416666666666666 -> 44929.75 | F68: 9.8 | G68: Valid | H68: 8.4 | I68: 15.4 | J68: Valid | K68: 14.4 | N68: 9.8 | O68: 8.4 | P68: 15.4 | Q68: 14.4 | R68: 15.4 | S68: 14.4 | T68: 9.8 | U68: 8.4
A69: 2023 | B69: 1 | C69: 3 | D69: 19 | E69: 44929.79167 | F69: 5.8 | G69: Valid | H69: 8.3 | I69: 13 | J69: Valid | K69: 14.5 | N69: 5.8 | O69: 8.3 | P69: 13 | Q69: 14.5 | R69: 13 | S69: 14.5 | T69: 5.8 | U69: 8.3
A70: 2023 | B70: 1 | C70: 3 | D70: 20 | E70: 44929.83333 | F70: 7.5 | G70: Valid | H70: 8 | I70: 19.1 | J70: Valid | K70: 14.4 | N70: 7.5 | O70: 8 | P70: 19.1 | Q70: 14.4 | R70: 19.1 | S70: 14.4 | T70: 7.5 | U70: 8
A71: 2023 | B71: 1 | C71: 3 | D71: 21 | E71: 44929.875 | F71: 12.2 | G71: Valid | H71: 7.9 | I71: 17.9 | J71: Valid | K71: 14.3 | N71: 12.2 | O71: 7.9 | P71: 17.9 | Q71: 14.3 | R71: 17.9 | S71: 14.3 | T71: 12.2 | U71: 7.9
A72: 2023 | B72: 1 | C72: 3 | D72: 22 | E72: 44929.91667 | F72: 10.7 | G72: Valid | H72: 8 | I72: 17.3 | J72: Valid | K72: 14.4 | N72: 10.7 | O72: 8 | P72: 17.3 | Q72: 14.4 | R72: 17.3 | S72: 14.4 | T72: 10.7 | U72: 8
A73: 2023 | B73: 1 | C73: 3 | D73: 23 | E73: 44929.95833 | F73: 12.2 | G73: Valid | H73: 8.1 | I73: 19.1 | J73: Valid | K73: 14.5 | N73: 12.2 | O73: 8.1 | P73: 19.1 | Q73: 14.5 | R73: 19.1 | S73: 14.5 | T73: 12.2 | U73: 8.1
A74: 2023 | B74: 1 | C74: 4 | D74: 0 | E74: 44930 | F74: 10.3 | G74: Valid | H74: 8.1 | I74: 17.6 | J74: Valid | K74: 14.6 | N74: =IF(G74="Valid", F74, NA()) -> 10.3 | O74: =IF(G74="Valid", H74, NA()) -> 8.1 | P74: 17.6 | Q74: 14.6 | R74: 17.6 | S74: 14.6 | T74: 10.3 | U74: 8.1
A75: 2023 | B75: 1 | C75: 4 | D75: 1 | E75: 44930.04167 | F75: 11.9 | G75: Valid | H75: 8.3 | I75: 17.2 | J75: Valid | K75: 14.8 | N75: 11.9 | O75: 8.3 | P75: 17.2 | Q75: 14.8 | R75: 17.2 | S75: 14.8 | T75: 11.9 | U75: 8.3
A76: 2023 | B76: 1 | C76: 4 | D76: 2 | E76: 44930.08333 | F76: 8.3 | G76: Valid | H76: 8.4 | I76: 13.1 | J76: Valid | K76: 14.9 | N76: 8.3 | O76: 8.4 | P76: 13.1 | Q76: 14.9 | R76: 13.1 | S76: 14.9 | T76: 8.3 | U76: 8.4
A77: 2023 | B77: 1 | C77: 4 | D77: 3 | E77: 44930.125 | F77: 6.1 | G77: Valid | H77: 8.2 | I77: 11.6 | J77: Valid | K77: 14.7 | N77: 6.1 | O77: 8.2 | P77: 11.6 | Q77: 14.7 | R77: 11.6 | S77: 14.7 | T77: 6.1 | U77: 8.2
A78: 2023 | B78: 1 | C78: 4 | D78: 4 | E78: 44930.16667 | F78: 9.1 | G78: Valid | H78: 8 | I78: 15.4 | J78: Valid | K78: 14.6 | N78: 9.1 | O78: 8 | P78: 15.4 | Q78: 14.6 | R78: 15.4 | S78: 14.6 | T78: 9.1 | U78: 8
A79: 2023 | B79: 1 | C79: 4 | D79: 5 | E79: 44930.20833 | F79: 9 | G79: Valid | H79: 8.2 | I79: 17.9 | J79: Valid | K79: 14.8 | N79: 9 | O79: 8.2 | P79: 17.9 | Q79: 14.8 | R79: 17.9 | S79: 14.8 | T79: 9 | U79: 8.2
A80: 2023 | B80: 1 | C80: 4 | D80: 6 | E80: 44930.25 | F80: 8 | G80: Valid | H80: 8.2 | I80: 15.5 | J80: Valid | K80: 15 | N80: 8 | O80: 8.2 | P80: 15.5 | Q80: 15 | R80: 15.5 | S80: 15 | T80: 8 | U80: 8.2
A81: 2023 | B81: 1 | C81: 4 | D81: 7 | E81: 44930.29167 | F81: 9.3 | G81: Valid | H81: 8.4 | I81: 20 | J81: Valid | K81: 15.3 | N81: 9.3 | O81: 8.4 | P81: 20 | Q81: 15.3 | R81: 20 | S81: 15.3 | T81: 9.3 | U81: 8.4
A82: 2023 | B82: 1 | C82: 4 | D82: 8 | E82: 44930.33333 | F82: 1.3 | G82: Valid | H82: 8.2 | I82: 8.3 | J82: Valid | K82: 15.3 | N82: 1.3 | O82: 8.2 | P82: 8.3 | Q82: 15.3 | R82: 8.3 | S82: 15.3 | T82: 1.3 | U82: 8.2
A83: 2023 | B83: 1 | C83: 4 | D83: 9 | E83: 44930.375 | F83: 4.8 | G83: Valid | H83: 8.1 | I83: 10.4 | J83: Valid | K83: 15.2 | N83: 4.8 | O83: 8.1 | P83: 10.4 | Q83: 15.2 | R83: 10.4 | S83: 15.2 | T83: 4.8 | U83: 8.1
A84: 2023 | B84: 1 | C84: 4 | D84: 10 | E84: 44930.41667 | F84: 7.9 | G84: Valid | H84: 8.3 | I84: 14.8 | J84: Valid | K84: 15.4 | N84: 7.9 | O84: 8.3 | P84: 14.8 | Q84: 15.4 | R84: 14.8 | S84: 15.4 | T84: 7.9 | U84: 8.3
A85: 2023 | B85: 1 | C85: 4 | D85: 11 | E85: 44930.45833 | F85: 4.9 | G85: Valid | H85: 8.5 | I85: 12 | J85: Valid | K85: 15.5 | N85: 4.9 | O85: 8.5 | P85: 12 | Q85: 15.5 | R85: 12 | S85: 15.5 | T85: 4.9 | U85: 8.5
A86: 2023 | B86: 1 | C86: 4 | D86: 12 | E86: 44930.5 | F86: 9.1 | G86: Valid | H86: 8.6 | I86: 18.1 | J86: Valid | K86: 15.7 | N86: 9.1 | O86: 8.6 | P86: 18.1 | Q86: 15.7 | R86: 18.1 | S86: 15.7 | T86: 9.1 | U86: 8.6
A87: 2023 | B87: 1 | C87: 4 | D87: 13 | E87: 44930.54167 | F87: 3.1 | G87: Valid | H87: 8.3 | I87: 10.6 | J87: Valid | K87: 15.5 | N87: 3.1 | O87: 8.3 | P87: 10.6 | Q87: 15.5 | R87: 10.6 | S87: 15.5 | T87: 3.1 | U87: 8.3
A88: 2023 | B88: 1 | C88: 4 | D88: 14 | E88: 44930.58333 | F88: 11 | G88: Valid | H88: 8.4 | I88: 20.1 | J88: Valid | K88: 15.7 | N88: 11 | O88: 8.4 | P88: 20.1 | Q88: 15.7 | R88: 20.1 | S88: 15.7 | T88: 11 | U88: 8.4
A89: 2023 | B89: 1 | C89: 4 | D89: 15 | E89: 44930.625 | F89: 13.3 | G89: Valid | H89: 8.6 | I89: 33.2 | J89: Valid | K89: 16.4 | N89: 13.3 | O89: 8.6 | P89: 33.2 | Q89: 16.4 | R89: 33.2 | S89: 16.4 | T89: 13.3 | U89: 8.6
A90: 2023 | B90: 1 | C90: 4 | D90: 16 | E90: 44930.66667 | F90: 7.4 | G90: Valid | H90: 8.5 | I90: 16.6 | J90: Valid | K90: 16.4 | N90: 7.4 | O90: 8.5 | P90: 16.6 | Q90: 16.4 | R90: 16.6 | S90: 16.4 | T90: 7.4 | U90: 8.5
A91: 2023 | B91: =B90 -> 1 | C91: =C67+1 -> 4 | D91: 17 | E91: 44930.70833 | F91: 10.3 | G91: Valid | H91: 8.7 | I91: 31.8 | J91: Valid | K91: 17.3 | N91: 10.3 | O91: 8.7 | P91: 31.8 | Q91: 17.3 | R91: 31.8 | S91: 17.3 | T91: 10.3 | U91: 8.7
A92: 2023 | B92: 1 | C92: 4 | D92: 18 | E92: 44930.75 | F92: 11.3 | G92: Valid | H92: 8.7 | I92: 19.1 | J92: Valid | K92: 17.3 | N92: 11.3 | O92: 8.7 | P92: 19.1 | Q92: 17.3 | R92: 19.1 | S92: 17.3 | T92: 11.3 | U92: 8.7
A93: 2023 | B93: 1 | C93: 4 | D93: 19 | E93: 44930.79167 | F93: 7.3 | G93: Valid | H93: 8.6 | I93: 14 | J93: Valid | K93: 17.2 | N93: 7.3 | O93: 8.6 | P93: 14 | Q93: 17.2 | R93: 14 | S93: 17.2 | T93: 7.3 | U93: 8.6
A94: 2023 | B94: 1 | C94: 4 | D94: 20 | E94: 44930.83333 | F94: 12.7 | G94: Valid | H94: 8.8 | I94: 18.9 | J94: Valid | K94: 17.1 | N94: 12.7 | O94: 8.8 | P94: 18.9 | Q94: 17.1 | R94: 18.9 | S94: 17.1 | T94: 12.7 | U94: 8.8
A95: 2023 | B95: 1 | C95: 4 | D95: 21 | E95: 44930.875 | F95: 10.7 | G95: Valid | H95: 8.7 | I95: 16 | J95: Valid | K95: 16.9 | N95: 10.7 | O95: 8.7 | P95: 16 | Q95: 16.9 | R95: 16 | S95: 16.9 | T95: 10.7 | U95: 8.7
A96: 2023 | B96: 1 | C96: 4 | D96: 22 | E96: 44930.91667 | F96: 9.9 | G96: Valid | H96: 8.6 | I96: 14.8 | J96: Valid | K96: 16.7 | N96: 9.9 | O96: 8.6 | P96: 14.8 | Q96: 16.7 | R96: 14.8 | S96: 16.7 | T96: 9.9 | U96: 8.6
A97: 2023 | B97: 1 | C97: 4 | D97: 23 | E97: 44930.95833 | F97: 11.4 | G97: Valid | H97: 8.6 | I97: 16.5 | J97: Valid | K97: 16.6 | N97: 11.4 | O97: 8.6 | P97: 16.5 | Q97: 16.6 | R97: 16.5 | S97: 16.6 | T97: 11.4 | U97: 8.6
A98: 2023 | B98: 1 | C98: 5 | D98: 0 | E98: 44931 | F98: 5.7 | G98: Valid | H98: 8.4 | I98: 10.5 | J98: Valid | K98: 16.2 | N98: 5.7 | O98: 8.4 | P98: 10.5 | Q98: 16.2 | R98: 10.5 | S98: 16.2 | T98: 5.7 | U98: 8.4
A99: 2023 | B99: 1 | C99: 5 | D99: 1 | E99: 44931.04167 | F99: 5.6 | G99: Valid | H99: 8.1 | I99: 9.6 | J99: Valid | K99: 15.9 | N99: 5.6 | O99: 8.1 | P99: 9.6 | Q99: 15.9 | R99: 9.6 | S99: 15.9 | T99: 5.6 | U99: 8.1
A100: 2023 | B100: 1 | C100: 5 | D100: 2 | E100: 44931.08333 | F100: 1.8 | G100: Valid | H100: 7.8 | I100: 4.2 | J100: Valid | K100: 15.5 | N100: 1.8 | O100: 7.8 | P100: 4.2 | Q100: 15.5 | R100: 4.2 | S100: 15.5 | T100: 1.8 | U100: 7.8
A101: 2023 | B101: 1 | C101: 5 | D101: 3 | E101: 44931.125 | F101: 7.3 | G101: Valid | H101: 7.8 | I101: 10.3 | J101: Valid | K101: 15.4 | N101: 7.3 | O101: 7.8 | P101: 10.3 | Q101: 15.4 | R101: 10.3 | S101: 15.4 | T101: 7.3 | U101: 7.8
A102: 2023 | B102: 1 | C102: 5 | D102: 4 | E102: 44931.16667 | F102: 1.5 | G102: Valid | H102: 7.5 | I102: 4.7 | J102: Valid | K102: 15 | N102: 1.5 | O102: 7.5 | P102: 4.7 | Q102: 15 | R102: 4.7 | S102: 15 | T102: 1.5 | U102: 7.5
A103: 2023 | B103: 1 | C103: 5 | D103: 5 | E103: 44931.20833 | F103: 2 | G103: Valid | H103: 7.2 | I103: 4.9 | J103: Valid | K103: 14.4 | N103: 2 | O103: 7.2 | P103: 4.9 | Q103: 14.4 | R103: 4.9 | S103: 14.4 | T103: 2 | U103: 7.2
A104: 2023 | B104: 1 | C104: 5 | D104: 6 | E104: 44931.25 | F104: 5.6 | G104: Valid | H104: 7.1 | I104: 8.3 | J104: Valid | K104: 14.1 | N104: 5.6 | O104: 7.1 | P104: 8.3 | Q104: 14.1 | R104: 8.3 | S104: 14.1 | T104: 5.6 | U104: 7.1
A105: 2023 | B105: 1 | C105: 5 | D105: 7 | E105: 44931.29167 | F105: 3.7 | G105: Valid | H105: 6.9 | I105: 7.1 | J105: Valid | K105: 13.6 | N105: 3.7 | O105: 6.9 | P105: 7.1 | Q105: 13.6 | R105: 7.1 | S105: 13.6 | T105: 3.7 | U105: 6.9
A106: 2023 | B106: 1 | C106: 5 | D106: 8 | E106: 44931.33333 | F106: -2.1 | G106: Valid | H106: 6.8 | I106: 0.9 | J106: Valid | K106: 13.3 | N106: -2.1 | O106: 6.8 | P106: 0.9 | Q106: 13.3 | R106: 0.9 | S106: 13.3 | T106: -2.1 | U106: 6.8
A107: 2023 | B107: 1 | C107: 5 | D107: 9 | E107: 44931.375 | F107: 0.3 | G107: Valid | H107: 6.6 | I107: 3.3 | J107: Valid | K107: 13 | N107: 0.3 | O107: 6.6 | P107: 3.3 | Q107: 13 | R107: 3.3 | S107: 13 | T107: 0.3 | U107: 6.6
A108: 2023 | B108: 1 | C108: 5 | D108: 10 | E108: 44931.41667 | F108: 2.3 | G108: Valid | H108: 6.4 | I108: 6.6 | J108: Valid | K108: 12.7 | N108: 2.3 | O108: 6.4 | P108: 6.6 | Q108: 12.7 | R108: 6.6 | S108: 12.7 | T108: 2.3 | U108: 6.4
A109: 2023 | B109: 1 | C109: 5 | D109: 11 | E109: 44931.45833 | F109: -2.9 | G109: Valid | H109: 6.1 | I109: 1.5 | J109: Valid | K109: 12.4 | N109: -2.9 | O109: 6.1 | P109: 1.5 | Q109: 12.4 | R109: 1.5 | S109: 12.4 | T109: -2.9 | U109: 6.1
A110: 2023 | B110: 1 | C110: 5 | D110: 12 | E110: 44931.5 | F110: 2.4 | G110: Valid | H110: 5.8 | I110: 5.8 | J110: Valid | K110: 11.9 | N110: 2.4 | O110: 5.8 | P110: 5.8 | Q110: 11.9 | R110: 5.8 | S110: 11.9 | T110: 2.4 | U110: 5.8
A111: 2023 | B111: 1 | C111: 5 | D111: 13 | E111: 44931.54167 | F111: 4.6 | G111: Valid | H111: 5.9 | I111: 7.5 | J111: Valid | K111: 11.8 | N111: 4.6 | O111: 5.9 | P111: 7.5 | Q111: 11.8 | R111: 7.5 | S111: 11.8 | T111: 4.6 | U111: 5.9
A112: 2023 | B112: 1 | C112: 5 | D112: 14 | E112: 44931.58333 | F112: 9.1 | G112: Valid | H112: 5.9 | I112: 12.7 | J112: Valid | K112: 11.6 | N112: 9.1 | O112: 5.9 | P112: 12.7 | Q112: 11.6 | R112: 12.7 | S112: 11.6 | T112: 9.1 | U112: 5.9
A113: 2023 | B113: 1 | C113: 5 | D113: 15 | E113: 44931.625 | F113: 5 | G113: Valid | H113: 5.5 | I113: 10.3 | J113: Valid | K113: 10.6 | N113: 5 | O113: 5.5 | P113: 10.3 | Q113: 10.6 | R113: 10.3 | S113: 10.6 | T113: 5 | U113: 5.5
A114: 2023 | B114: 1 | C114: 5 | D114: 16 | E114: 44931.66667 | F114: 3.7 | G114: Valid | H114: 5.4 | I114: 7.8 | J114: Valid | K114: 10.3 | N114: 3.7 | O114: 5.4 | P114: 7.8 | Q114: 10.3 | R114: 7.8 | S114: 10.3 | T114: 3.7 | U114: 5.4
A115: 2023 | B115: 1 | C115: 5 | D115: 17 | E115: 44931.70833 | F115: 6.4 | G115: Valid | H115: 5.2 | I115: 10.3 | J115: Valid | K115: 9.4 | N115: 6.4 | O115: 5.2 | P115: 10.3 | Q115: 9.4 | R115: 10.3 | S115: 9.4 | T115: 6.4 | U115: 5.2
A116: 2023 | B116: 1 | C116: 5 | D116: 18 | E116: 44931.75 | F116: 6.4 | G116: Valid | H116: 5 | I116: 10.2 | J116: Valid | K116: 9 | N116: 6.4 | O116: 5 | P116: 10.2 | Q116: 9 | R116: 10.2 | S116: 9 | T116: 6.4 | U116: 5
A117: 2023 | B117: 1 | C117: 5 | D117: 19 | E117: 44931.79167 | F117: 7.2 | G117: Valid | H117: 4.9 | I117: 12.6 | J117: Valid | K117: 8.9 | N117: 7.2 | O117: 4.9 | P117: 12.6 | Q117: 8.9 | R117: 12.6 | S117: 8.9 | T117: 7.2 | U117: 4.9
A118: 2023 | B118: 1 | C118: 5 | D118: 20 | E118: 44931.83333 | F118: 3.4 | G118: Valid | H118: 4.5 | I118: 8.3 | J118: Valid | K118: 8.4 | N118: 3.4 | O118: 4.5 | P118: 8.3 | Q118: 8.4 | R118: 8.3 | S118: 8.4 | T118: 3.4 | U118: 4.5
A119: 2023 | B119: 1 | C119: 5 | D119: 21 | E119: 44931.875 | F119: 2.8 | G119: Valid | H119: 4.2 | I119: 7.6 | J119: Valid | K119: 8 | N119: 2.8 | O119: 4.2 | P119: 7.6 | Q119: 8 | R119: 7.6 | S119: 8 | T119: 2.8 | U119: 4.2
A120: 2023 | B120: 1 | C120: 5 | D120: 22 | E120: 44931.91667 | F120: 7.5 | G120: Valid | H120: 4.1 | I120: 13.3 | J120: Valid | K120: 7.9 | N120: 7.5 | O120: 4.1 | P120: 13.3 | Q120: 7.9 | R120: 13.3 | S120: 7.9 | T120: 7.5 | U120: 4.1
A121: 2023 | B121: 1 | C121: 5 | D121: 23 | E121: 44931.95833 | F121: 2.2 | G121: Valid | H121: 3.7 | I121: 7.2 | J121: Valid | K121: 7.5 | N121: 2.2 | O121: 3.7 | P121: 7.2 | Q121: 7.5 | R121: 7.2 | S121: 7.5 | T121: 2.2 | U121: 3.7
A122: 2023 | B122: 1 | C122: 6 | D122: 0 | E122: 44932 | F122: 0.3 | G122: Valid | H122: 3.5 | I122: 3.7 | J122: Valid | K122: 7.3 | N122: 0.3 | O122: 3.5 | P122: 3.7 | Q122: 7.3 | R122: 3.7 | S122: 7.3 | T122: 0.3 | U122: 3.5
A123: 2023 | B123: 1 | C123: 6 | D123: 1 | E123: 44932.04167 | F123: -2 | G123: Valid | H123: 3.2 | I123: 1 | J123: Valid | K123: 6.9 | N123: -2 | O123: 3.2 | P123: 1 | Q123: 6.9 | R123: 1 | S123: 6.9 | T123: -2 | U123: 3.2
A124: 2023 | B124: 1 | C124: 6 | D124: 2 | E124: 44932.08333 | F124: 6.4 | G124: Valid | H124: 3.4 | I124: 8.9 | J124: Valid | K124: 7.1 | N124: 6.4 | O124: 3.4 | P124: 8.9 | Q124: 7.1 | R124: 8.9 | S124: 7.1 | T124: 6.4 | U124: 3.4
A125: 2023 | B125: 1 | C125: 6 | D125: 3 | E125: 44932.125 | F125: 3.5 | G125: Valid | H125: 3.2 | I125: 7.7 | J125: Valid | K125: 7 | N125: 3.5 | O125: 3.2 | P125: 7.7 | Q125: 7 | R125: 7.7 | S125: 7 | T125: 3.5 | U125: 3.2
A126: 2023 | B126: 1 | C126: 6 | D126: 4 | E126: 44932.16667 | F126: -2.7 | G126: Valid | H126: 3.1 | I126: 2.4 | J126: Valid | K126: 6.9 | N126: -2.7 | O126: 3.1 | P126: 2.4 | Q126: 6.9 | R126: 2.4 | S126: 6.9 | T126: -2.7 | U126: 3.1
A127: 2023 | B127: 1 | C127: 6 | D127: 5 | E127: 44932.20833 | F127: 2.3 | G127: Valid | H127: 3.1 | I127: 7.5 | J127: Valid | K127: 7 | N127: 2.3 | O127: 3.1 | P127: 7.5 | Q127: 7 | R127: 7.5 | S127: 7 | T127: 2.3 | U127: 3.1
A128: 2023 | B128: 1 | C128: 6 | D128: 6 | E128: 44932.25 | F128: -0.3 | G128: Valid | H128: 2.8 | I128: 3.8 | J128: Valid | K128: 6.9 | N128: -0.3 | O128: 2.8 | P128: 3.8 | Q128: 6.9 | R128: 3.8 | S128: 6.9 | T128: -0.3 | U128: 2.8
A129: 2023 | B129: 1 | C129: 6 | D129: 7 | E129: 44932.29167 | F129: 0.8 | G129: Valid | H129: 2.7 | I129: 4.3 | J129: Valid | K129: 6.7 | N129: 0.8 | O129: 2.7 | P129: 4.3 | Q129: 6.7 | R129: 4.3 | S129: 6.7 | T129: 0.8 | U129: 2.7
A130: 2023 | B130: 1 | C130: 6 | D130: 8 | E130: 44932.33333 | F130: 2.6 | G130: Valid | H130: 2.9 | I130: 5.9 | J130: Valid | K130: 7 | N130: =IF(G130="Valid", F130, NA()) -> 2.6 | O130: =IF(G130="Valid", H130, NA()) -> 2.9 | P130: =IF(J130="Valid", I130, NA()) -> 5.9 | Q130: =IF(J130="Valid", K130, NA()) -> 7 | R130: 5.9 | S130: 7 | T130: 2.6 | U130: 2.9
A131: 2023 | B131: 1 | C131: 6 | D131: 9 | E131: 44932.375 | F131: 7.8 | G131: Valid | H131: 3.2 | I131: 10.9 | J131: Valid | K131: 7.3 | N131: 7.8 | O131: 3.2 | P131: 10.9 | Q131: 7.3 | R131: 10.9 | S131: 7.3 | T131: 7.8 | U131: 3.2
A132: =A131 -> 2023 | B132: 1 | C132: 6 | D132: =IF(D131=23,0,D131+1) -> 10 | E132: =E131+0.0416666666666666 -> 44932.41667 | F132: 5.4 | G132: Valid | H132: 3.4 | I132: 9.3 | J132: Valid | K132: 7.6 | N132: 5.4 | O132: 3.4 | P132: 9.3 | Q132: 7.6 | R132: 9.3 | S132: 7.6 | T132: 5.4 | U132: 3.4
A133: 2023 | B133: 1 | C133: 6 | D133: 11 | E133: 44932.45833 | F133: 3.7 | G133: Valid | H133: 3.7 | I133: 7.6 | J133: Valid | K133: 7.8 | N133: 3.7 | O133: 3.7 | P133: 7.6 | Q133: 7.8 | R133: 7.6 | S133: 7.8 | T133: 3.7 | U133: 3.7
A134: 2023 | B134: 1 | C134: 6 | D134: 12 | E134: 44932.5 | F134: 6.1 | G134: Valid | H134: 3.9 | I134: 10 | J134: Valid | K134: 8.1 | N134: 6.1 | O134: 3.9 | P134: 10 | Q134: 8.1 | R134: 10 | S134: 8.1 | T134: 6.1 | U134: 3.9
A135: 2023 | B135: 1 | C135: 6 | D135: 13 | E135: 44932.54167 | F135: 3.5 | G135: Valid | H135: 3.9 | I135: 5.5 | J135: Valid | K135: 8 | N135: 3.5 | O135: 3.9 | P135: 5.5 | Q135: 8 | R135: 5.5 | S135: 8 | T135: 3.5 | U135: 3.9
A136: 2023 | B136: 1 | C136: 6 | D136: 14 | E136: 44932.58333 | F136: 2.9 | G136: Valid | H136: 3.6 | I136: 5.5 | J136: Valid | K136: 7.7 | N136: 2.9 | O136: 3.6 | P136: 5.5 | Q136: 7.7 | R136: 5.5 | S136: 7.7 | T136: 2.9 | U136: 3.6
A137: 2023 | B137: 1 | C137: 6 | D137: 15 | E137: 44932.625 | F137: 7.8 | G137: Valid | H137: 3.7 | I137: 11.4 | J137: Valid | K137: 7.8 | N137: 7.8 | O137: 3.7 | P137: 11.4 | Q137: 7.8 | R137: 11.4 | S137: 7.8 | T137: 7.8 | U137: 3.7
A138: 2023 | B138: 1 | C138: 6 | D138: 16 | E138: 44932.66667 | F138: 9.8 | G138: Valid | H138: 4 | I138: 13.1 | J138: Valid | K138: 8 | N138: 9.8 | O138: 4 | P138: 13.1 | Q138: 8 | R138: 13.1 | S138: 8 | T138: 9.8 | U138: 4
A139: 2023 | B139: 1 | C139: 6 | D139: 17 | E139: 44932.70833 | F139: 10.1 | G139: Valid | H139: 4.1 | I139: 13.9 | J139: Valid | K139: 8.2 | N139: 10.1 | O139: 4.1 | P139: 13.9 | Q139: 8.2 | R139: 13.9 | S139: 8.2 | T139: 10.1 | U139: 4.1
A140: 2023 | B140: 1 | C140: 6 | D140: 18 | E140: 44932.75 | F140: 10.5 | G140: Valid | H140: 4.3 | I140: 15.4 | J140: Valid | K140: 8.4 | N140: 10.5 | O140: 4.3 | P140: 15.4 | Q140: 8.4 | R140: 15.4 | S140: 8.4 | T140: 10.5 | U140: 4.3
A141: 2023 | B141: 1 | C141: 6 | D141: 19 | E141: 44932.79167 | F141: 6.9 | G141: Valid | H141: 4.3 | I141: 13.8 | J141: Valid | K141: 8.3 | N141: 6.9 | O141: 4.3 | P141: 13.8 | Q141: 8.3 | R141: 13.8 | S141: 8.3 | T141: 6.9 | U141: 4.3
A142: 2023 | B142: 1 | C142: 6 | D142: 20 | E142: 44932.83333 | F142: 4 | G142: Valid | H142: 4.2 | I142: 9.1 | J142: Valid | K142: 8.3 | N142: 4 | O142: 4.2 | P142: 9.1 | Q142: 8.3 | R142: 9.1 | S142: 8.3 | T142: 4 | U142: 4.2
A143: 2023 | B143: 1 | C143: 6 | D143: 21 | E143: 44932.875 | F143: 5.1 | G143: Valid | H143: 4.3 | I143: 10.1 | J143: Valid | K143: 8.3 | N143: 5.1 | O143: 4.3 | P143: 10.1 | Q143: 8.3 | R143: 10.1 | S143: 8.3 | T143: 5.1 | U143: 4.3
A144: 2023 | B144: 1 | C144: 6 | D144: 22 | E144: 44932.91667 | F144: 2.5 | G144: Valid | H144: 4.1 | I144: 6.3 | J144: Valid | K144: 8 | N144: 2.5 | O144: 4.1 | P144: 6.3 | Q144: 8 | R144: 6.3 | S144: 8 | T144: 2.5 | U144: 4.1
A145: 2023 | B145: 1 | C145: 6 | D145: 23 | E145: 44932.95833 | F145: 5.1 | G145: Valid | H145: 4.2 | I145: 7.8 | J145: Valid | K145: 8 | N145: 5.1 | O145: 4.2 | P145: 7.8 | Q145: 8 | R145: 7.8 | S145: 8 | T145: 5.1 | U145: 4.2
A146: 2023 | B146: 1 | C146: 7 | D146: 0 | E146: 44933 | F146: 2.2 | G146: Valid | H146: 4.2 | I146: 5.1 | J146: Valid | K146: 8 | N146: 2.2 | O146: 4.2 | P146: 5.1 | Q146: 8 | R146: 5.1 | S146: 8 | T146: 2.2 | U146: 4.2
A147: 2023 | B147: 1 | C147: 7 | D147: 1 | E147: 44933.04167 | F147: 0.4 | G147: Valid | H147: 4.3 | I147: 3 | J147: Valid | K147: 8.1 | N147: 0.4 | O147: 4.3 | P147: 3 | Q147: 8.1 | R147: 3 | S147: 8.1 | T147: 0.4 | U147: 4.3
A148: 2023 | B148: 1 | C148: 7 | D148: 2 | E148: 44933.08333 | F148: 0.7 | G148: Valid | H148: 4.1 | I148: 2.8 | J148: Valid | K148: 7.8 | N148: 0.7 | O148: 4.1 | P148: 2.8 | Q148: 7.8 | R148: 2.8 | S148: 7.8 | T148: 0.7 | U148: 4.1
A149: 2023 | B149: 1 | C149: 7 | D149: 3 | E149: 44933.125 | F149: 1.5 | G149: Valid | H149: 4 | I149: 3.6 | J149: Valid | K149: 7.6 | N149: 1.5 | O149: 4 | P149: 3.6 | Q149: 7.6 | R149: 3.6 | S149: 7.6 | T149: 1.5 | U149: 4
A150: 2023 | B150: 1 | C150: 7 | D150: 4 | E150: 44933.16667 | F150: 0.4 | G150: Valid | H150: 4.1 | I150: 3.1 | J150: Valid | K150: 7.7 | N150: 0.4 | O150: 4.1 | P150: 3.1 | Q150: 7.7 | R150: 3.1 | S150: 7.7 | T150: 0.4 | U150: 4.1
A151: 2023 | B151: 1 | C151: 7 | D151: 5 | E151: 44933.20833 | F151: -0.1 | G151: Valid | H151: 4 | I151: 2.6 | J151: Valid | K151: 7.5 | N151: -0.1 | O151: 4 | P151: 2.6 | Q151: 7.5 | R151: 2.6 | S151: 7.5 | T151: -0.1 | U151: 4
A152: 2023 | B152: 1 | C152: 7 | D152: 6 | E152: 44933.25 | F152: 1.2 | G152: Valid | H152: 4.1 | I152: 3 | J152: Valid | K152: 7.5 | N152: 1.2 | O152: 4.1 | P152: 3 | Q152: 7.5 | R152: 3 | S152: 7.5 | T152: 1.2 | U152: 4.1
A153: 2023 | B153: 1 | C153: 7 | D153: 7 | E153: 44933.29167 | F153: -1.6 | G153: Valid | H153: 4 | I153: 0.9 | J153: Valid | K153: 7.3 | N153: -1.6 | O153: 4 | P153: 0.9 | Q153: 7.3 | R153: 0.9 | S153: 7.3 | T153: -1.6 | U153: 4
A154: 2023 | B154: 1 | C154: 7 | D154: 8 | E154: 44933.33333 | F154: -5.6 | G154: Valid | H154: 3.7 | I154: -2.9 | J154: Valid | K154: 7 | N154: -5.6 | O154: 3.7 | P154: -2.9 | Q154: 7 | R154: -2.9 | S154: 7 | T154: -5.6 | U154: 3.7
A155: 2023 | B155: =B154 -> 1 | C155: =C131+1 -> 7 | D155: 9 | E155: 44933.375 | F155: -1.7 | G155: Valid | H155: 3.3 | I155: 0.3 | J155: Valid | K155: 6.6 | N155: -1.7 | O155: 3.3 | P155: 0.3 | Q155: 6.6 | R155: 0.3 | S155: 6.6 | T155: -1.7 | U155: 3.3
A156: 2023 | B156: 1 | C156: 7 | D156: 10 | E156: 44933.41667 | F156: 1.1 | G156: Valid | H156: 3.2 | I156: 4.7 | J156: Valid | K156: 6.5 | N156: 1.1 | O156: 3.2 | P156: 4.7 | Q156: 6.5 | R156: 4.7 | S156: 6.5 | T156: 1.1 | U156: 3.2
A157: 2023 | B157: 1 | C157: 7 | D157: 11 | E157: 44933.45833 | F157: 1.6 | G157: Valid | H157: 3.1 | I157: 4.5 | J157: Valid | K157: 6.4 | N157: 1.6 | O157: 3.1 | P157: 4.5 | Q157: 6.4 | R157: 4.5 | S157: 6.4 | T157: 1.6 | U157: 3.1
A158: 2023 | B158: 1 | C158: 7 | D158: 12 | E158: 44933.5 | F158: 1.6 | G158: Valid | H158: 2.9 | I158: 4.9 | J158: Valid | K158: 6.2 | N158: 1.6 | O158: 2.9 | P158: 4.9 | Q158: 6.2 | R158: 4.9 | S158: 6.2 | T158: 1.6 | U158: 2.9
A159: 2023 | B159: 1 | C159: 7 | D159: 13 | E159: 44933.54167 | F159: 2.4 | G159: Valid | H159: 2.9 | I159: 6.9 | J159: Valid | K159: 6.3 | N159: 2.4 | O159: 2.9 | P159: 6.9 | Q159: 6.3 | R159: 6.9 | S159: 6.3 | T159: 2.4 | U159: 2.9
A160: 2023 | B160: 1 | C160: 7 | D160: 14 | E160: 44933.58333 | F160: 9.4 | G160: Valid | H160: 3.2 | I160: 57.1 | J160: Valid | K160: 8.4 | N160: 9.4 | O160: 3.2 | P160: 57.1 | Q160: 8.4 | R160: 57.1 | S160: 8.4 | T160: 9.4 | U160: 3.2
A161: 2023 | B161: 1 | C161: 7 | D161: 15 | E161: 44933.625 | F161: 1.3 | G161: Valid | H161: 2.9 | I161: 3.9 | J161: Valid | K161: 8.1 | N161: 1.3 | O161: 2.9 | P161: 3.9 | Q161: 8.1 | R161: 3.9 | S161: 8.1 | T161: 1.3 | U161: 2.9
A162: 2023 | B162: 1 | C162: 7 | D162: 16 | E162: 44933.66667 | F162: 5.9 | G162: Valid | H162: 2.7 | I162: 8.8 | J162: Valid | K162: 8 | N162: 5.9 | O162: 2.7 | P162: 8.8 | Q162: 8 | R162: 8.8 | S162: 8 | T162: 5.9 | U162: 2.7
A163: 2023 | B163: 1 | C163: 7 | D163: 17 | E163: 44933.70833 | F163: 3.9 | G163: Valid | H163: 2.5 | I163: 7.6 | J163: Valid | K163: 7.7 | N163: 3.9 | O163: 2.5 | P163: 7.6 | Q163: 7.7 | R163: 7.6 | S163: 7.7 | T163: 3.9 | U163: 2.5
A164: 2023 | B164: 1 | C164: 7 | D164: 18 | E164: 44933.75 | F164: 5.7 | G164: Valid | H164: 2.3 | I164: 9.7 | J164: Valid | K164: 7.4 | N164: 5.7 | O164: 2.3 | P164: 9.7 | Q164: 7.4 | R164: 9.7 | S164: 7.4 | T164: 5.7 | U164: 2.3
A165: 2023 | B165: 1 | C165: 7 | D165: 19 | E165: 44933.79167 | F165: 10.9 | G165: Valid | H165: 2.4 | I165: 14.5 | J165: Valid | K165: 7.4 | N165: 10.9 | O165: 2.4 | P165: 14.5 | Q165: 7.4 | R165: 14.5 | S165: 7.4 | T165: 10.9 | U165: 2.4
A166: 2023 | B166: 1 | C166: 7 | D166: 20 | E166: 44933.83333 | F166: 7.6 | G166: Valid | H166: 2.5 | I166: 11.7 | J166: Valid | K166: 7.5 | N166: 7.6 | O166: 2.5 | P166: 11.7 | Q166: 7.5 | R166: 11.7 | S166: 7.5 | T166: 7.6 | U166: 2.5
A167: 2023 | B167: 1 | C167: 7 | D167: 21 | E167: 44933.875 | F167: 5.6 | G167: Valid | H167: 2.5 | I167: 12.5 | J167: Valid | K167: 7.5 | N167: 5.6 | O167: 2.5 | P167: 12.5 | Q167: 7.5 | R167: 12.5 | S167: 7.5 | T167: 5.6 | U167: 2.5
A168: 2023 | B168: 1 | C168: 7 | D168: 22 | E168: 44933.91667 | F168: 2.1 | G168: Valid | H168: 2.5 | I168: 5.2 | J168: Valid | K168: 7.4 | N168: 2.1 | O168: 2.5 | P168: 5.2 | Q168: 7.4 | R168: 5.2 | S168: 7.4 | T168: 2.1 | U168: 2.5
A169: 2023 | B169: 1 | C169: 7 | D169: 23 | E169: 44933.95833 | F169: 4.6 | G169: Valid | H169: 2.5 | I169: 6.8 | J169: Valid | K169: 7.4 | N169: 4.6 | O169: 2.5 | P169: 6.8 | Q169: 7.4 | R169: 6.8 | S169: 7.4 | T169: 4.6 | U169: 2.5
A170: 2023 | B170: 1 | C170: 8 | D170: 0 | E170: 44934 | F170: 4.2 | G170: Valid | H170: 2.6 | I170: 6.3 | J170: Valid | K170: 7.4 | N170: 4.2 | O170: 2.6 | P170: 6.3 | Q170: 7.4 | R170: 6.3 | S170: 7.4 | T170: 4.2 | U170: 2.6
A171: 2023 | B171: 1 | C171: 8 | D171: 1 | E171: 44934.04167 | F171: 2.5 | G171: Valid | H171: 2.7 | I171: 5.2 | J171: Valid | K171: 7.5 | N171: 2.5 | O171: 2.7 | P171: 5.2 | Q171: 7.5 | R171: 5.2 | S171: 7.5 | T171: 2.5 | U171: 2.7
A172: 2023 | B172: 1 | C172: 8 | D172: 2 | E172: 44934.08333 | F172: -2.1 | G172: Valid | H172: 2.5 | I172: 0.3 | J172: Valid | K172: 7.4 | N172: -2.1 | O172: 2.5 | P172: 0.3 | Q172: 7.4 | R172: 0.3 | S172: 7.4 | T172: -2.1 | U172: 2.5
A173: 2023 | B173: 1 | C173: 8 | D173: 3 | E173: 44934.125 | F173: -2.6 | G173: Valid | H173: 2.4 | I173: 0 | J173: Valid | K173: 7.2 | N173: -2.6 | O173: 2.4 | P173: 0 | Q173: 7.2 | R173: 0 | S173: 7.2 | T173: -2.6 | U173: 2.4
A174: 2023 | B174: 1 | C174: 8 | D174: 4 | E174: 44934.16667 | F174: 2.4 | G174: Valid | H174: 2.4 | I174: 4.3 | J174: Valid | K174: 7.2 | N174: 2.4 | O174: 2.4 | P174: 4.3 | Q174: 7.2 | R174: 4.3 | S174: 7.2 | T174: 2.4 | U174: 2.4
A175: 2023 | B175: 1 | C175: 8 | D175: 5 | E175: 44934.20833 | F175: -2.3 | G175: Valid | H175: 2.3 | I175: 0.7 | J175: Valid | K175: 7.1 | N175: -2.3 | O175: 2.3 | P175: 0.7 | Q175: 7.1 | R175: 0.7 | S175: 7.1 | T175: -2.3 | U175: 2.3
A176: 2023 | B176: 1 | C176: 8 | D176: 6 | E176: 44934.25 | F176: -4 | G176: Valid | H176: 2.1 | I176: -0.4 | J176: Valid | K176: 7 | N176: -4 | O176: 2.1 | P176: -0.4 | Q176: 7 | R176: -0.4 | S176: 7 | T176: -4 | U176: 2.1
A177: 2023 | B177: 1 | C177: 8 | D177: 7 | E177: 44934.29167 | F177: 3.1 | G177: Valid | H177: 2.3 | I177: 6.4 | J177: Valid | K177: 7.2 | N177: 3.1 | O177: 2.3 | P177: 6.4 | Q177: 7.2 | R177: 6.4 | S177: 7.2 | T177: 3.1 | U177: 2.3
A178: 2023 | B178: 1 | C178: 8 | D178: 8 | E178: 44934.33333 | F178: -2.2 | G178: Valid | H178: 2.5 | I178: 1 | J178: Valid | K178: 7.5 | N178: -2.2 | O178: 2.5 | P178: 1 | Q178: 7.5 | R178: 1 | S178: 7.5 | T178: -2.2 | U178: 2.5
A179: 2023 | B179: 1 | C179: 8 | D179: 9 | E179: 44934.375 | F179: -0.6 | G179: Valid | H179: 2.6 | I179: 2 | J179: Valid | K179: 7.6 | N179: -0.6 | O179: 2.6 | P179: 2 | Q179: 7.6 | R179: 2 | S179: 7.6 | T179: -0.6 | U179: 2.6
A180: 2023 | B180: 1 | C180: 8 | D180: 10 | E180: 44934.41667 | F180: 0.3 | G180: Valid | H180: 2.5 | I180: 4.4 | J180: Valid | K180: 7.6 | N180: 0.3 | O180: 2.5 | P180: 4.4 | Q180: 7.6 | R180: 4.4 | S180: 7.6 | T180: 0.3 | U180: 2.5
A181: 2023 | B181: 1 | C181: 8 | D181: 11 | E181: 44934.45833 | F181: 1.8 | G181: Valid | H181: 2.6 | I181: 6.5 | J181: Valid | K181: 7.8 | N181: 1.8 | O181: 2.6 | P181: 6.5 | Q181: 7.8 | R181: 6.5 | S181: 7.8 | T181: 1.8 | U181: 2.6
A182: 2023 | B182: 1 | C182: 8 | D182: 12 | E182: 44934.5 | F182: 4.7 | G182: Valid | H182: 2.7 | I182: 10.4 | J182: Valid | K182: 8 | N182: 4.7 | O182: 2.7 | P182: 10.4 | Q182: 8 | R182: 10.4 | S182: 8 | T182: 4.7 | U182: 2.7
A183: 2023 | B183: 1 | C183: 8 | D183: 13 | E183: 44934.54167 | F183: 7.1 | G183: Valid | H183: 2.9 | I183: 14 | J183: Valid | K183: 8.4 | N183: 7.1 | O183: 2.9 | P183: 14 | Q183: 8.4 | R183: 14 | S183: 8.4 | T183: 7.1 | U183: 2.9
A184: 2023 | B184: 1 | C184: 8 | D184: 14 | E184: 44934.58333 | F184: 7.6 | G184: Valid | H184: 2.9 | I184: 11.7 | J184: Valid | K184: 6.5 | N184: 7.6 | O184: 2.9 | P184: 11.7 | Q184: 6.5 | R184: 11.7 | S184: 6.5 | T184: 7.6 | U184: 2.9
A185: 2023 | B185: 1 | C185: 8 | D185: 15 | E185: 44934.625 | F185: 7.9 | G185: Valid | H185: 3.1 | I185: 13.2 | J185: Valid | K185: 6.9 | N185: 7.9 | O185: 3.1 | P185: 13.2 | Q185: 6.9 | R185: 13.2 | S185: 6.9 | T185: 7.9 | U185: 3.1
A186: 2023 | B186: 1 | C186: 8 | D186: 16 | E186: 44934.66667 | F186: 5.3 | G186: Valid | H186: 3.1 | I186: 9.4 | J186: Valid | K186: 7 | N186: 5.3 | O186: 3.1 | P186: 9.4 | Q186: 7 | R186: 9.4 | S186: 7 | T186: 5.3 | U186: 3.1
A187: 2023 | B187: 1 | C187: 8 | D187: 17 | E187: 44934.70833 | F187: 9.7 | G187: Valid | H187: 3.4 | I187: 14.4 | J187: Valid | K187: 7.2 | N187: 9.7 | O187: 3.4 | P187: 14.4 | Q187: 7.2 | R187: 14.4 | S187: 7.2 | T187: 9.7 | U187: 3.4
A188: 2023 | B188: 1 | C188: 8 | D188: 18 | E188: 44934.75 | F188: 9 | G188: Valid | H188: 3.5 | I188: 20.8 | J188: Valid | K188: 7.7 | N188: 9 | O188: 3.5 | P188: 20.8 | Q188: 7.7 | R188: 20.8 | S188: 7.7 | T188: 9 | U188: 3.5
A189: 2023 | B189: 1 | C189: 8 | D189: 19 | E189: 44934.79167 | F189: 12.7 | G189: Valid | H189: 3.5 | I189: 22.3 | J189: Valid | K189: 7.9 | N189: 12.7 | O189: 3.5 | P189: 22.3 | Q189: 7.9 | R189: 22.3 | S189: 7.9 | T189: 12.7 | U189: 3.5
A190: 2023 | B190: 1 | C190: 8 | D190: 20 | E190: 44934.83333 | F190: 7 | G190: Valid | H190: 3.5 | I190: 14.7 | J190: Valid | K190: 8 | N190: 7 | O190: 3.5 | P190: 14.7 | Q190: 8 | R190: 14.7 | S190: 8 | T190: 7 | U190: 3.5
A191: 2023 | B191: 1 | C191: 8 | D191: 21 | E191: 44934.875 | F191: 9.3 | G191: Valid | H191: 3.6 | I191: 15.5 | J191: Valid | K191: 8.1 | N191: 9.3 | O191: 3.6 | P191: 15.5 | Q191: 8.1 | R191: 15.5 | S191: 8.1 | T191: 9.3 | U191: 3.6
A192: 2023 | B192: 1 | C192: 8 | D192: 22 | E192: 44934.91667 | F192: 0.5 | G192: Valid | H192: 3.5 | I192: 7 | J192: Valid | K192: 8.1 | N192: 0.5 | O192: 3.5 | P192: 7 | Q192: 8.1 | R192: 7 | S192: 8.1 | T192: 0.5 | U192: 3.5
A193: 2023 | B193: 1 | C193: 8 | D193: 23 | E193: 44934.95833 | F193: -0.2 | G193: Valid | H193: 3.3 | I193: 4.8 | J193: Valid | K193: 8 | N193: -0.2 | O193: 3.3 | P193: 4.8 | Q193: 8 | R193: 4.8 | S193: 8 | T193: -0.2 | U193: 3.3
A194: 2023 | B194: 1 | C194: 9 | D194: 0 | E194: 44935 | F194: 5.6 | G194: Valid | H194: 3.4 | I194: 10.4 | J194: Valid | K194: 8.2 | N194: =IF(G194="Valid", F194, NA()) -> 5.6 | O194: =IF(G194="Valid", H194, NA()) -> 3.4 | P194: =IF(J194="Valid", I194, NA()) -> 10.4 | Q194: =IF(J194="Valid", K194, NA()) -> 8.2 | R194: 10.4 | S194: 8.2 | T194: 5.6 | U194: 3.4
A195: 2023 | B195: 1 | C195: 9 | D195: 1 | E195: 44935.04167 | F195: 9.7 | G195: Valid | H195: 3.6 | I195: 14.6 | J195: Valid | K195: 8.5 | N195: 9.7 | O195: 3.6 | P195: 14.6 | Q195: 8.5 | R195: 14.6 | S195: 8.5 | T195: 9.7 | U195: 3.6
A196: =A195 -> 2023 | B196: 1 | C196: 9 | D196: =IF(D195=23,0,D195+1) -> 2 | E196: =E195+0.0416666666666666 -> 44935.08333 | F196: 1.1 | G196: Valid | H196: 3.8 | I196: 5.5 | J196: Valid | K196: 8.7 | N196: 1.1 | O196: 3.8 | P196: 5.5 | Q196: 8.7 | R196: 5.5 | S196: 8.7 | T196: 1.1 | U196: 3.8
A197: 2023 | B197: 1 | C197: 9 | D197: 3 | E197: 44935.125 | F197: 3.4 | G197: Valid | H197: 4 | I197: 8.6 | J197: Valid | K197: 9 | N197: 3.4 | O197: 4 | P197: 8.6 | Q197: 9 | R197: 8.6 | S197: 9 | T197: 3.4 | U197: 4
A198: 2023 | B198: 1 | C198: 9 | D198: 4 | E198: 44935.16667 | F198: 3.2 | G198: Valid | H198: 4 | I198: 7.7 | J198: Valid | K198: 9.1 | N198: 3.2 | O198: 4 | P198: 7.7 | Q198: 9.1 | R198: 7.7 | S198: 9.1 | T198: 3.2 | U198: 4
A199: 2023 | B199: 1 | C199: 9 | D199: 5 | E199: 44935.20833 | F199: -1.1 | G199: Valid | H199: 4 | I199: 4.4 | J199: Valid | K199: 9.2 | N199: -1.1 | O199: 4 | P199: 4.4 | Q199: 9.2 | R199: 4.4 | S199: 9.2 | T199: -1.1 | U199: 4
A200: 2023 | B200: 1 | C200: 9 | D200: 6 | E200: 44935.25 | F200: 0.8 | G200: Valid | H200: 4.2 | I200: 6.4 | J200: Valid | K200: 9.5 | N200: 0.8 | O200: 4.2 | P200: 6.4 | Q200: 9.5 | R200: 6.4 | S200: 9.5 | T200: 0.8 | U200: 4.2
... 521 more rows

Sheet Raw data_format
A1: Parameter | B1: Format | C1: Comment | D1: Units of measure | E1: Minimum | F1: Maximum
A2: Year | B2: yyyy | C2: 4 integer format | D2: Not applicable | E2: 2015 | F2: Until reporting ceases
A3: Month | B3: mm | C3: 2 integer format | D3: Not applicable | E3: 1 | F3: 12
A4: Day | B4: dd | C4: 2 integer format | D4: Not applicable | E4: 1 | F4: 31
A5: Hour | B5: hh | C5: 2 integer format | D5: Not applicable | E5: 0 | F5: 23
A6: PM10 | B6: 0 | C6: 1 decimal place resolution | D6: µg/m3 | E6: Negative | F6: Instrument specific
A7: PM2.5 | B7: 0 | C7: 2 decimal place resolution | D7: µg/m3 | E7: Negative | F7: Instrument specific
A8: Status | B8: Text | C8: 7 character format | D8: Not applicable | E8: Valid | F8: Invalid
